{"text_format":"1","workbook":"xlsx","n_sheets":4,"sheets":["Daten","Anleitungen","Grunddaten","BEW 1-8"],"not_rendered":{"charts":0,"images":19,"macros":1,"external_links":0,"defined_names":4,"comments":0,"pivot_tables":0},"unopened":[],"bounds":{"document_bytes":16777216,"sheet_cells":100000,"rows_first":2000,"rows_last":500,"rows_between":2000,"halvings":0,"cell_chars":16384,"cell_head_chars":4096},"cells_cut":0,"cells_raw":0,"read":"whole","date_system":"1900"}

{"sheet":"Daten","index":0,"n_rows":27,"n_cols":7,"rows_kept":27,"cut":false,"hidden":true,"merged":[[0,3,0,6]]}
[null,null,null,"Faktor im Anrechnungsjahr [%]"]
["Gruppe  ","  Produkt","N kg/t m³","aktuell","Jahr 2","Jahr 3","Jahr 4"]
[]
["Reststoffe Weinbereitung","Trester 40 % TM (t)",7.4,0.1,0.1,0,0]
[null,"Trester 40 % TM (m³)",3.7,0.1,0.1,0,0]
[null,"Mosttrub flüssig (m³)",5,0.8,0.1,0,0]
[null,"Weinhefe flüssig 20 % TM (m³)",8,0.8,0.1,0,0]
[null,"Weinhefe filtriert 40 % TM (t)",16,0.8,0.1,0,0]
[null,"Weinhefe filtriert 40 % TM (m³)",11,0.8,0.1,0,0]
[null,"Filtrationskieselgur 40 % TM (t)",6.4,0.8,0.1,0,0]
[null,"Eigenes Produkt (Reststoffe)",null,{"$f":"D4","v":0.1},{"$f":"E4","v":0.1},0,0]
[]
["Sonstige","Streuwiese 86 % TM (t)",11,0.03,0.03,0,0]
[null,"Stroh 90 % TM (t)",5,0.02,0,0,0]
[null,"Eigenes Produkt (Sonstige)",null,{"$f":"D14","v":0.02},{"$f":"E14","v":0},0,0]
[]
["Kompost, Pflanzenhilfstoffe","Grünschnittkompost 64 % TM (t)",6.5,0.03,0.04,0.03,0.03]
[null,"Bioabfallkompost 52 % TM (t)",9,0.05,0.04,0.03,0.03]
[null,"Holzhäcksel > 40 mm (t)",4,0,0,0,0]
[null,"Eigenes Produkt (Kompost)",null,{"$f":"D17","v":0.03},{"$f":"E17","v":0.04},0.03,0.03]
[]
["Festmist","Rindermist 25 % TM (t)",6.5,0.25,0.1,0,0]
[null,"Schweinemist 25 % TM (t)",9.8000000000000007,0.3,0.1,0,0]
[null,"Schafmist 25 % TM (t)",5.5,0.25,0.1,0,0]
[null,"Pferdemist 25 % TM (t)",5,0.25,0.1,0,0]
[null,"Hühnermist 50 % TM (t)",22,0.3,0.1,0,0]
[null,"Eigenes Produkt (Festmist)",null,{"$f":"D25","v":0.25},{"$f":"E25","v":0.1},0,0]

{"sheet":"Anleitungen","index":1,"n_rows":27,"n_cols":11,"rows_kept":27,"cut":false,"hidden":false,"merged":[[1,0,1,10],[2,0,2,10],[3,0,3,10],[18,0,19,1],[4,6,4,10],[7,0,8,1]]}
[]
["1. EINLEITUNG\nMit dieser Excel-Anwendung können Sie den N-Düngebedarf ihrer Flächen/Bewirtschaftungseinheiten für das aktuelle Düngejahr ermitteln und dokumentieren. Diese Anwendung benötigen Sie laut § 3 (2) neuer Düngeverordnung (DüV 2017) nur,  wenn Sie mehr als 50 kg N/ha und Jahr ausbringen wollen und Ihr Betrieb mindestens 2 ha groß ist. Alle inhaltlichen Informationen zur Stickstoff-Düngebedarfsermittlung und zum Bedienen der Excel-Anwendung entnehmen Sie bitte dem zugehörigen Merkblatt „Stickstoff-Düngebedarfsermittlung im Weinbau“.\n\nHinweise zum organischen Modul in der Excel-Anwendung:\nDie Düngeverordnung (DüV 2017) regelt u.a. die Anwendung von organischen Düngern nach guter fachlicher Praxis auf landwirtschaftlich genutzten Flächen. Organische Dünger sind insbesondere Wirtschaftsdünger und Komposte. Wirtschaftsdünger sind Düngemittel, die als Ausscheidungen bei der Haltung von Tieren in der Landwirtschaft (z. B. Stallmist) oder als pflanzliche Stoffe in der Landwirtschaft (z. B. Trester) anfallen. \nLaut § 3 (5) DüV sind die Gesamt-N-Gehalte der organischen Dünger unabhängig vom Aufbringungszeitpunkt mindestens mit den folgenden Prozentsätzen auf den ermittelten N-Bedarf der jeweiligen Folgekultur bzw. im Jahr des Aufbringens anzurechnen (siehe Tabelle 1). Für den Weinbau muss das organische Modul NUR angewendet werden, wenn nach der Ausbringung einer Dreijahresgabe an organischen Düngern wie beispielsweise Trester, Grünschnittkompost oder Pferdemist aufgrund bestimmter Umwelteinflüsse N-Mangel auftritt und nochmals eine zusätzliche N-Düngung nötig wird. Dies kommt in der guten fachlichen Praxis nur in Ausnahmefällen vor! Bei Normalertrag gilt, dass die Flächen, die eine Dreijahresgabe an Humusdüngern erhalten haben, die kommenden drei Jahre von zusätzlichen Stickstoff- und Phosphat-Düngungen ausgenommen sind!"]
["2. HINWEISE ZUR BEDIENUNG\n• Die leere Excel-Datei ist als Original zu sichern und immer mit einer Kopie zu arbeiten.\n• Die Datei enthält Makros: bitte per Virenscanner vor dem ersten Gebrauch die Datei prüfen.\n• Die Datei wurde unter MS Excel vers. 2013 erstellt (Endung XLSM). Für die Kompatibilität mit anderen Programmen\n   wird keine Garantie übernommen.\n• Die Datei wurde für MS Excel vers. 2003 konvertiert (Endung XLS). Gemäß unseren Tests arbeitet die Datei korrekt unter\n  MS Excel vers. 2003 und neuer.\n• Beim Öffnen der Datei sind die Makros zu aktivieren.\n• Die Darstellung der Excel-Blätter ist für einen 24\" Monitor ausgelegt (Zoom-Faktor:  80 %).\n• Auf den Excel-Blättern \"BEW xx-xx\" bitte die Anweisungen am oberen Blattrand lesen und befolgen.\n• Keine Excel-Blätter löschen, nur per Schaltfläche neue hinzufügen. Im Bedarfsfall ein Excel-Blatt (z.T.) leer lassen oder\n   mit einer leeren Kopie des Originals weiter arbeiten."]
["Tabelle 1:\nMindestwerte für die Ausnutzung des Stickstoffs (in % des Gesamt-N) aus organischen oder organisch-mineralischen Düngemitteln im Jahr des Aufbringens und in den Folgejahren gemäß Anlage 3 zu § 3 (5) DüV 2017."]
[null,null,null,null,null,null,"Faktor im Anrechnungsjahr"]
[null,"Gruppe","Produkt (in t bzw. m³)",null,null,"Einheit","N kg/t(m³)","aktuell","Jahr 2","Jahr 3","Jahr 4"]
[null,null,"Trester 40 % TM",null,null,"t",7.4,"10 %","10 %","0 %","0 %"]
["Reststoffe Weinbereitung",null,"Trester 40 % TM",null,null,"m³",3.7,"10 %","10 %","0 %","0 %"]
[null,null,"Mosttrub flüssig",null,null,"m³",5,"80 %","10 %","0 %","0 %"]
[null,null,"Weinhefe flüssig 20 % TM",null,null,"m³",8,"80 %","10 %","0 %","0 %"]
[null,null,"Weinhefe filtriert 40 % TM",null,null,"t",16,"80 %","10 %","0 %","0 %"]
[null,null,"Weinhefe filtriert 40 % TM",null,null,"m³",11,"80 %","10 %","0 %","0 %"]
[null,null,"Filtrationskieselgur 40 % TM",null,null,"t",6.4,"80 %","10 %","0 %","0 %"]
[null,null,"Eigenes Produkt (Reststoffe)",null,null,null,null,"10 %","10 %","0 %","0 %"]
[null,null,"Streuwiese 86 % TM",null,null,"t",11,"3 %","3 %","0 %","0 %"]
[null,"Sonstige","Stroh 90 % TM",null,null,"t",5,"2 %","0 %","0 %","0 %"]
[null,null,"Eigenes Produkt (Sonstige)",null,null,null,null,"2 %","0 %","0 %","0 %"]
[null,null,"Grünschnittkompost 64 % TM",null,null,"t",6.5,"3 %","4 %","3 %","3 %"]
["Kompost, Pflanzenhilfstoffe",null,"Bioabfallkompost 52 % TM",null,null,"t",9,"5 %","4 %","3 %","3 %"]
[null,null,"Holzhäcksel > 40 mm",null,null,"t",4,"0 %","0 %","0 %","0 %"]
[null,null,"Eigenes Produkt (Kompost)",null,null,null,null,"3 %","4 %","3 %","3 %"]
[null,null,"Rindermist 25 % TM",null,null,"t",6.5,"25 %","10 %","0 %","0 %"]
[null,"Festmist","Schweinemist 25 % TM",null,null,"t",9.8000000000000007,"30 %","10 %","0 %","0 %"]
[null,null,"Schafmist 25 % TM",null,null,"t",5.5,"25 %","10 %","0 %","0 %"]
[null,null,"Pferdemist 25 % TM",null,null,"t",5,"25 %","10 %","0 %","0 %"]
[null,null,"Hühnermist 50 % TM",null,null,"t",22,"30 %","10 %","0 %","0 %"]
[null,null,"Eigenes Produkt (Festmist)",null,null,null,null,"25 %","10 %","0 %","0 %"]

{"sheet":"Grunddaten","index":2,"n_rows":16,"n_cols":8,"rows_kept":16,"cut":false,"hidden":false,"merged":[[0,0,0,2],[5,6,5,7],[6,3,6,5],[7,7,7,8]]}
["Stickstoff-Düngebedarfsermittlung für Ertragsanlagen im Weinbau"]
[null,"Betrieb:","Düngejahr:"]
["Betriebsname"]
["Strasse Hausnr."]
["PLZ Ort"]
[null,null,null,null,null,null,"    DLR Rheinpfalz"]
[null,null,null,"N-Düngebedarf (kg N/ha)",null,null,"Version:","1.1.0"]
["Bewirtschaftungs-\neinheit","Bezeichnung","Bemerkung","maximal","abzüglich\norganisch","nachzu-\nführen","     Stand:","2019-04-15"]
["BEW 1",null,null,{"$f":"'BEW 1-8'!F42","v":""},{"$f":"IF(AND('BEW 1-8'!F67=\"\",'BEW 1-8'!F68=\"\"),\"\",SUM('BEW 1-8'!F67:F68))","v":""},{"$f":"IF(D9=\"\",\"\",IF(E9=\"\",D9,MAX(0,D9-E9)))","v":""}]
["BEW 2",null,null,{"$f":"'BEW 1-8'!G42","v":""},{"$f":"IF(AND('BEW 1-8'!G67=\"\",'BEW 1-8'!G68=\"\"),\"\",SUM('BEW 1-8'!G67:G68))","v":""},{"$f":"IF(D10=\"\",\"\",IF(E10=\"\",D10,MAX(0,D10-E10)))","v":""}]
["BEW 3",null,null,{"$f":"'BEW 1-8'!H42","v":""},{"$f":"IF(AND('BEW 1-8'!H67=\"\",'BEW 1-8'!H68=\"\"),\"\",SUM('BEW 1-8'!H67:H68))","v":""},{"$f":"IF(D11=\"\",\"\",IF(E11=\"\",D11,MAX(0,D11-E11)))","v":""}]
["BEW 4",null,null,{"$f":"'BEW 1-8'!I42","v":""},{"$f":"IF(AND('BEW 1-8'!I67=\"\",'BEW 1-8'!I68=\"\"),\"\",SUM('BEW 1-8'!I67:I68))","v":""},""]
["BEW 5",null,null,{"$f":"'BEW 1-8'!J42","v":""},{"$f":"IF(AND('BEW 1-8'!J67=\"\",'BEW 1-8'!J68=\"\"),\"\",SUM('BEW 1-8'!J67:J68))","v":""},""]
["BEW 6",null,null,{"$f":"'BEW 1-8'!K42","v":""},{"$f":"IF(AND('BEW 1-8'!K67=\"\",'BEW 1-8'!K68=\"\"),\"\",SUM('BEW 1-8'!K67:K68))","v":""},""]
["BEW 7",null,null,{"$f":"'BEW 1-8'!L42","v":""},{"$f":"IF(AND('BEW 1-8'!L67=\"\",'BEW 1-8'!L68=\"\"),\"\",SUM('BEW 1-8'!L67:L68))","v":""},""]
["BEW 8",null,null,{"$f":"'BEW 1-8'!M42","v":""},{"$f":"IF(AND('BEW 1-8'!M67=\"\",'BEW 1-8'!M68=\"\"),\"\",SUM('BEW 1-8'!M67:M68))","v":""},""]

{"sheet":"BEW 1-8","index":3,"n_rows":82,"n_cols":13,"rows_kept":82,"cut":false,"hidden":false,"merged":[[77,9,77,11],[78,9,78,11],[79,9,79,11],[80,9,80,11],[81,9,81,11],[77,3,77,5],[78,3,78,5],[79,3,79,5],[80,3,80,5],[81,3,81,5],[77,6,77,8],[78,6,78,8],[79,6,79,8],[80,6,80,8],[81,6,81,8],[76,9,76,11],[74,6,74,8],[75,6,75,8],[76,6,76,8],[62,11,62,12],[62,7,62,9],[63,7,63,9],[68,3,68,9],[69,0,69,2],[69,3,69,4],[66,0,66,2],[67,0,67,2],[63,11,63,12],[71,0,71,2],[73,3,73,5],[73,6,73,8],[73,9,73,11],[74,3,74,5],[75,3,75,5],[76,3,76,5],[74,9,74,11],[75,9,75,11],[61,0,61,2],[57,3,57,4],[58,3,58,4],[59,3,59,4],[54,3,54,4],[56,3,56,4],[54,0,55,2],[61,3,61,6],[51,5,52,5],[51,6,52,6],[4,12,5,12],[11,10,13,10],[11,11,13,11],[11,12,13,12],[16,10,25,10],[16,11,25,11],[16,12,25,12],[4,9,5,9],[22,0,23,0],[23,3,23,4],[4,10,5,10],[11,7,13,7],[11,8,13,8],[16,7,25,7],[18,3,18,4],[25,3,25,4],[12,0,12,2],[12,3,12,4],[4,8,5,8],[8,3,8,4],[16,8,25,8],[16,9,25,9],[17,3,17,4],[16,0,18,0],[45,0,45,2],[45,3,45,12],[40,3,40,9],[41,0,41,2],[41,3,41,4],[35,7,37,7],[35,0,37,0],[35,5,37,5],[35,6,37,6],[43,0,43,2],[35,8,37,8],[38,0,38,2],[39,0,39,2],[35,10,37,10],[35,11,37,11],[35,12,37,12],[35,9,37,9],[43,3,43,4],[51,12,52,12],[52,0,52,1],[51,0,51,2],[51,3,53,4],[51,9,52,9],[51,10,52,10],[51,11,52,11],[51,7,52,7],[51,8,52,8],[16,3,16,4],[16,5,25,5],[22,3,22,4],[24,3,24,4],[27,9,28,9],[27,8,28,8],[29,7,34,7],[27,7,28,7],[29,10,34,10],[24,0,25,0],[29,8,34,8],[29,9,34,9],[16,6,25,6],[20,3,20,4],[21,3,21,4],[19,0,21,0],[19,3,19,4],[29,12,34,12],[32,1,32,2],[33,1,34,1],[27,0,28,2],[27,5,28,5],[29,11,34,11],[27,6,28,6],[29,0,34,0],[29,1,29,2],[29,5,34,5],[29,6,34,6],[30,1,30,2],[31,1,31,2],[27,10,28,10],[27,11,28,11],[27,12,28,12],[4,11,5,11],[10,0,10,2],[10,3,10,4],[5,0,5,1],[7,0,7,2],[7,3,7,4],[4,7,5,7],[15,0,15,2],[15,3,15,4],[11,0,11,2],[11,3,11,4],[11,5,13,5],[4,0,4,2],[4,5,5,5],[4,6,5,6],[4,3,6,4],[11,9,13,9],[13,0,13,2],[13,3,13,4],[11,6,13,6]]}
["Hinweise zur Bedienung der Excel-Anwendung:"]
["1. Anwahl Bewirtschaftseinheit: Die Bewirtschaftseinheit (z. B. Feld \"BEW 1\") anklicken. Die Spalte färbt sich leuchtend grün."]
["2. Auswahl N-Zu- und Abschläge: Die N-Zu- und N-Abschläge durch anklicken des gewünschten Feldes übertragen (z. B. \"+ 20\")!"]
[]
["Stickstoff-Düngebedarfsermittlung für Ertragsanlagen im Weinbau",null,null,"Zu- und Abschläge\n(kg Rein-N/ha)\n6 6 6",null,"BEW 1","BEW 2","BEW 3","BEW 4","BEW 5","BEW 6","BEW 7","BEW 8"]
[{"$f":"\"Betrieb: \" & Grunddaten!B3","v":"Betrieb: "},null,{"$f":"\"Düngejahr \" & Grunddaten!C3","v":"Düngejahr "}]
[]
["Ausgangswert bei einem Traubenertrag von 7 bis 14 t/ha",null,null,"+ 40",null,40,40,40,40,40,40,40,40]
["Traubenertrag",null,"> 14 t/ha","+ 10"]
[]
["Rebenwachstum"]
["stark",null,null,"- 30"]
["ausgeglichen (normal, mittel)",null,null," +/- 0"]
["schwach",null,null," + 30*"]
[]
["Humusgehalt in 0 bis 30 cm Bodentiefe [in %]"]
["Leichte Böden \n(S und l‘S)",null,"unter 1,5 % ","+ 20*"]
[null,null,"1,5 bis 2,5 % "," +/- 0"]
[null,null,"über 2,5 % ","- 40"]
["Mittlere bis schwere Böden \n(lS, sL, uL, t‘L, tL, lT und T)",null,"unter 1,8 % ","+ 20*"]
[null,null,"1,8 bis 3,0 % "," +/- 0"]
[null,null,"über 3,0 % ","- 40"]
["Steinhaltige Böden \n(ab 20 % Steine)",null,"unter 4,0 % "," +/- 0"]
[null,null,"über 4,0 % ","- 40"]
["Skelettreiche Böden \n(ab 50 % Steine)",null,"unter 7,0 % "," +/- 0*"]
[null,null,"ab 7,0 %","- 40"]
[]
["Bodenpflege",null,null,"jede","jede",0,0,0,1,0,1]
[null,null,null,"2. Gasse","Gasse"]
["Dauerbegrünung mit \nGräsern und anderen \nNichtleguminosen","Einsaat auf im Vorfeld offengehaltenem Boden",null,"+ 20   ","+ 40   "]
[null,"Einsaat nach vorherigem Begrünungsumbruch",null,"+/- 0   ","+/- 0   "]
[null,"Etablierte Dauerbegrünung",null,"+/- 0   ","+/- 0   "]
[null,"Stören einer Dauerbegrünung",null,"- 15   ","- 30   "]
[null,"Umbruch","nach   5 Jahren","- 20   ","- 40   "]
[null,null,"nach 10 Jahren","- 40   ","- 80   "]
["Dauerbegrünungen \nmit Leguminosen","Walzen/Mulchen","ab       50 % Leguminosen-Anteil","- 10   ","- 20   "]
[null,"Umbruch","unter 50 % Leguminosen-Anteil","- 25   ","- 50   "]
[null,"Umbruch","ab       50 % Leguminosen-Anteil","- 50   ","- 100   "]
["Offenhalten über Sommer (Umbruch Herbst-/Winterbegrünung)",null,null,"- 10   ","- 20   "]
["Abdeckung zur Schonung der Bodenwasservorräte (Rinde, Stroh, Holzhäcksel)",null,null,"- 10   ","- 20   "]
[null,null,null,"*Humusversorgung verbessern (Beratungsmaterial)"]
["Maximaler Stickstoff-Düngebedarf (kg N/ha) nach Schätzverfahren",null,null,"max. 80 kg N/ha",null,{"$f":"IF(AND(ISBLANK(F9),ISBLANK(F12),ISBLANK(F17),ISBLANK(F30),ISBLANK(F36),ISBLANK(F39),ISBLANK(F40),F44=\"\"),\"\",IF(AND(ISBLANK(F9),ISBLANK(F12),ISBLANK(F17),ISBLANK(F30),ISBLANK(F36),ISBLANK(F39),ISBLANK(F40),F44<>\"\"),40,MAX(0,MIN(80,SUM(F30:F40,F17,F12,F9,F8)))))","v":""},{"$f":"IF(AND(ISBLANK(G9),ISBLANK(G12),ISBLANK(G17),ISBLANK(G30),ISBLANK(G36),ISBLANK(G39),ISBLANK(G40),G44=\"\"),\"\",IF(AND(ISBLANK(G9),ISBLANK(G12),ISBLANK(G17),ISBLANK(G30),ISBLANK(G36),ISBLANK(G39),ISBLANK(G40),G44<>\"\"),40,MAX(0,MIN(80,SUM(G30:G40,G17,G12,G9,G8)))))","v":""},"","","","","",""]
[]
["Stickstoff-Anteil aus organischer Dügung",null,null,null,null,{"$f":"F70","v":""},{"$f":"G70","v":""},"","","","","",""]
[]
["Ort, Datum, Unterschrift des Betriebsinhabers: "]
["Organisches Modul"]
["1. Anwahl Bewirtschaftseinheit: Die Bewirtschaftseinheit (z. B. Feld \"BEW 1\") anklicken. Die Spalte färbt sich leuchtend grün."]
["2. Anwahl Jahreszahl:  Die Jahreszahl (Feld \"2018\") anklicken. Die Zelle rechts daneben färbt sich leuchtend grün."]
["3. Ausbringmenge: Die Ausbringmenge im Feld rechts neben der Jahreszahl in der korrekten Einheit (t oder m³) eintragen"]
["4. Auswahl Düngung: Grünes Feld bei Kompost, etc. am rechten Rand (Pfeil) anwählen, Düngerart auswählen (z. B. \"Holzhächsel\")"]
["Stickstoff-Düngebedarfsermittlung für Ertragsanlagen im Weinbau",null,null,"Ausbringmenge\nin t (m³) / ha\n6 6 6",null,"BEW 1","BEW 2","BEW 3","BEW 4","BEW 5","BEW 6","BEW 7","BEW 8"]
[{"$f":"\"Betrieb: \" & Grunddaten!B3","v":"Betrieb: "},null,{"$f":"\"Düngejahr \" & Grunddaten!C3","v":"Düngejahr "}]
[]
["Organische Düngung"]
[]
["aktuelles Jahr",null,{"$f":"IF(ISBLANK(Grunddaten!C3),\"\",Grunddaten!C3)","v":""}]
[null,null,{"$f":"IF(C57=\"\",\"\",C57-1)","v":""}]
[null,null,{"$f":"IF(C57=\"\",\"\",C57-2)","v":""}]
[null,null,{"$f":"IF(C57=\"\",\"\",C57-3)","v":""}]
[]
["Düngung"]
["Kompost,\nPflanzenhilfsstoffe",null,null,null,null,null,null,null,null,null,null,"Reststoffe\nWeinbereitung"]
["Festmist",null,null,null,null,null,null,null,null,null,null,"Sonstige"]
[]
["Anzurechnende Menge (Rein-N kg/ha)",null,null,null,null,0,0,0,1,0,1]
["aus organischen Düngung des aktuellen Jahres (geplant)",null,null,null,null,{"$f":"IF(ISBLANK(F57),\"\",F57)","v":""},"","","","","","",""]
[{"$f":"\"aus organischer Düngung der Vorjahre \" & C60 & \" - \" & C58","v":"aus organischer Düngung der Vorjahre  - "},null,null,null,null,{"$f":"IF(AND(ISBLANK(F58),ISBLANK(F59),ISBLANK(F60)),\"\",SUM(F58:F60))","v":""},"","","","","","",""]
[]
["aus organischer Dügung gesamt",null,null,null,null,{"$f":"IF(AND(F67=\"\",F68=\"\"),\"\",SUM(F67:F68))","v":""},{"$f":"IF(AND(G67=\"\",G68=\"\"),\"\",SUM(G67:G68))","v":""},"","","","","",""]
[]
["Art der organischen Düngung"]
[]
[null,null,{"$f":"C57","v":""},{"$f":"IF(C74=\"\",\"\",C74-1)","v":""},null,null,{"$f":"IF(C74=\"\",\"\",D74-1)","v":""},null,null,{"$f":"IF(C74=\"\",\"\",G74-1)","v":""}]
["Bewirtschaftungs-",{"$f":"F52","v":"BEW 1"}]
["einheit",{"$f":"G52","v":"BEW 2"}]
[null,{"$f":"H52","v":"BEW 3"}]
[null,{"$f":"I52","v":"BEW 4"}]
[null,{"$f":"J52","v":"BEW 5"}]
[null,{"$f":"K52","v":"BEW 6"}]
[null,{"$f":"L52","v":"BEW 7"}]
[null,{"$f":"M52","v":"BEW 8"}]